[Event "Titled Tuesday Blitz February 28 Late 2023"]
[White "Zhu, Jiner"]
[Black "Benaddi, Mouhcine"]
[WhiteFideId "8608059"]
[BlackFideId "9001050"]
[WhiteElo "2384"]
[BlackElo "2036"]
[Result "1/2-1/2"]
[Round "01"]
[TimeControl "180+2"]
[Date "2023.02.28"]
[WhiteClock "0:00:06"]
[BlackClock "0:00:05"]

1. c4 {[%clk 0:02:59]}  c6 {[%clk 0:03:00]} 2. Nc3 {[%clk 0:02:59]}  d5 {[%clk 0:03:01]} 3. d4 {[%clk 0:02:59]}  Nf6 {[%clk 0:03:02]} 4. Nf3 {[%clk 0:02:59]}  dxc4 {[%clk 0:03:01]} 5. a4 {[%clk 0:02:54]}  Bf5 {[%clk 0:02:57]} 6. Ne5 {[%clk 0:02:54]}  Nbd7 {[%clk 0:02:51]} 7. Nxc4 {[%clk 0:02:54]}  Qc7 {[%clk 0:02:49]} 8. g3 {[%clk 0:02:53]}  e5 {[%clk 0:02:39]} 9. dxe5 {[%clk 0:02:52]}  Nxe5 {[%clk 0:02:40]} 10. Bf4 {[%clk 0:02:52]}  Nfd7 {[%clk 0:02:41]} 11. Qc1 {[%clk 0:02:46]}  f6 {[%clk 0:02:31]} 12. Bg2 {[%clk 0:02:34]}  Be6 {[%clk 0:02:26]} 13. Nxe5 {[%clk 0:02:32]}  fxe5 {[%clk 0:02:27]} 14. Be3 {[%clk 0:02:32]}  Nc5 {[%clk 0:02:23]} 15. Bxc5 {[%clk 0:02:18]}  Bxc5 {[%clk 0:02:22]} 16. O-O {[%clk 0:02:18]}  O-O {[%clk 0:02:18]} 17. a5 {[%clk 0:02:17]}  Rad8 {[%clk 0:02:14]} 18. a6 {[%clk 0:02:14]}  Bb6 {[%clk 0:02:10]} 19. axb7 {[%clk 0:02:06]}  Qxb7 {[%clk 0:02:11]} 20. Ne4 {[%clk 0:02:05]}  Bd5 {[%clk 0:02:07]} 21. Qc2 {[%clk 0:02:04]}  Qe7 {[%clk 0:02:04]} 22. e3 {[%clk 0:01:57]}  h6 {[%clk 0:02:01]} 23. Rac1 {[%clk 0:01:54]}  Kh8 {[%clk 0:01:53]} 24. h4 {[%clk 0:01:51]}  Qe6 {[%clk 0:01:50]} 25. Qe2 {[%clk 0:01:33]}  Rf7 {[%clk 0:01:45]} 26. Qh5 {[%clk 0:01:27]}  Rff8 {[%clk 0:01:23]} 27. Nc5 {[%clk 0:01:26]}  Bxc5 {[%clk 0:01:17]} 28. Rxc5 {[%clk 0:01:26]}  e4 {[%clk 0:01:14]} 29. Rd1 {[%clk 0:01:21]}  Rf5 {[%clk 0:01:11]} 30. Qe2 {[%clk 0:01:19]}  Rdf8 {[%clk 0:01:11]} 31. Bh3 {[%clk 0:01:16]}  Qg6 {[%clk 0:01:07]} 32. Bxf5 {[%clk 0:01:15]}  Rxf5 {[%clk 0:01:04]} 33. Rd2 {[%clk 0:01:14]}  Rf3 {[%clk 0:01:02]} 34. Kh2 {[%clk 0:01:13]}  Qg4 {[%clk 0:01:00]} 35. Qf1 {[%clk 0:00:47]}  Qf5 {[%clk 0:00:53]} 36. Qg2 {[%clk 0:00:44]}  g5 {[%clk 0:00:50]} 37. hxg5 {[%clk 0:00:43]}  hxg5 {[%clk 0:00:49]} 38. Qh3+ {[%clk 0:00:42]}  Qxh3+ {[%clk 0:00:43]} 39. Kxh3 {[%clk 0:00:43]}  Kg7 {[%clk 0:00:40]} 40. b4 {[%clk 0:00:43]}  a6 {[%clk 0:00:36]} 41. Ra5 {[%clk 0:00:39]}  Be6+ {[%clk 0:00:17]} 42. Kg2 {[%clk 0:00:39]}  Rf6 {[%clk 0:00:12]} 43. Rxa6 {[%clk 0:00:16]}  Bg4 {[%clk 0:00:11]} 44. f4 {[%clk 0:00:05]}  exf3+ {[%clk 0:00:11]} 45. Kf2 {[%clk 0:00:06]}  Rh6 {[%clk 0:00:10]} 46. Rd4 {[%clk 0:00:06]}  Rh2+ {[%clk 0:00:09]} 47. Kg1 {[%clk 0:00:04]}  f2+ {[%clk 0:00:09]} 48. Kxh2 {[%clk 0:00:03]}  f1=Q {[%clk 0:00:09]} 49. Ra7+ {[%clk 0:00:04]}  Kg6 {[%clk 0:00:07]} 50. Rxg4 {[%clk 0:00:04]}  Qe2+ {[%clk 0:00:06]} 51. Kh3 {[%clk 0:00:05]}  Qf1+ {[%clk 0:00:04]} 52. Kh2 {[%clk 0:00:05]}  Qe2+ {[%clk 0:00:05]} 53. Kh3 {[%clk 0:00:05]}  Qf1+ {[%clk 0:00:05]} 54. Kh2 {[%clk 0:00:06]} 1/2-1/2


[Site "https://www.chess.com"]

[Event "Titled Tuesday Blitz February 28 Late 2023"]
[White "Vaglio Munoz, Jaime"]
[Black "Sieciechowicz, Marcin"]
[WhiteFideId "6500145"]
[BlackFideId "1130170"]
[WhiteElo "2199"]
[BlackElo "2302"]
[Result "0-1"]
[Round "01"]
[TimeControl "180+2"]
[Date "2023.02.28"]
[WhiteClock "0:00:18"]
[BlackClock "0:00:39"]

1. Nf3 {[%clk 0:02:59]}  g6 {[%clk 0:02:56]} 2. g3 {[%clk 0:02:56]}  Bg7 {[%clk 0:02:51]} 3. d4 {[%clk 0:02:55]}  d5 {[%clk 0:02:47]} 4. Bg2 {[%clk 0:02:54]}  Nf6 {[%clk 0:02:47]} 5. b3 {[%clk 0:02:53]}  O-O {[%clk 0:02:46]} 6. Bb2 {[%clk 0:02:53]}  Ne4 {[%clk 0:02:46]} 7. O-O {[%clk 0:02:53]}  c5 {[%clk 0:02:46]} 8. e3 {[%clk 0:02:51]}  Nc6 {[%clk 0:02:46]} 9. c3 {[%clk 0:02:50]}  b6 {[%clk 0:02:44]} 10. a3 {[%clk 0:02:47]}  Bb7 {[%clk 0:02:43]} 11. b4 {[%clk 0:02:47]}  Rc8 {[%clk 0:02:41]} 12. Re1 {[%clk 0:02:46]}  c4 {[%clk 0:02:37]} 13. Nbd2 {[%clk 0:02:45]}  f5 {[%clk 0:02:36]} 14. a4 {[%clk 0:02:44]}  e6 {[%clk 0:02:32]} 15. Ba3 {[%clk 0:02:43]}  Re8 {[%clk 0:02:29]} 16. Qc2 {[%clk 0:02:43]}  h6 {[%clk 0:02:27]} 17. Nf1 {[%clk 0:02:38]}  a6 {[%clk 0:02:24]} 18. N3d2 {[%clk 0:02:27]}  b5 {[%clk 0:02:23]} 19. a5 {[%clk 0:02:26]}  e5 {[%clk 0:02:17]} 20. f3 {[%clk 0:02:25]}  Nxc3 {[%clk 0:02:10]} 21. dxe5 {[%clk 0:01:47]}  Nxe5 {[%clk 0:02:08]} 22. Bb2 {[%clk 0:01:43]}  d4 {[%clk 0:02:05]} 23. exd4 {[%clk 0:01:42]}  Qxd4+ {[%clk 0:02:05]} 24. Kh1 {[%clk 0:01:42]}  Nd3 {[%clk 0:02:03]} 25. Rxe8+ {[%clk 0:01:33]}  Rxe8 {[%clk 0:02:04]} 26. h3 {[%clk 0:01:29]}  Nxb4 {[%clk 0:01:55]} 27. Qc1 {[%clk 0:01:05]}  Nd3 {[%clk 0:01:55]} 28. Qc2 {[%clk 0:01:03]}  Nxb2 {[%clk 0:01:52]} 29. Qxb2 {[%clk 0:01:02]}  Ne2 {[%clk 0:01:50]} 30. Qxd4 {[%clk 0:01:00]}  Bxd4 {[%clk 0:01:48]} 31. Ra2 {[%clk 0:01:00]}  Nc3 {[%clk 0:01:42]} 32. Rc2 {[%clk 0:00:59]}  Re1 {[%clk 0:01:39]} 33. Kh2 {[%clk 0:00:59]}  Ne2 {[%clk 0:01:36]} 34. h4 {[%clk 0:00:54]}  Bd5 {[%clk 0:01:33]} 35. f4 {[%clk 0:00:47]}  Bxg2 {[%clk 0:01:27]} 36. Kxg2 {[%clk 0:00:48]}  Rc1 {[%clk 0:01:14]} 37. Ra2 {[%clk 0:00:44]}  Nc3 {[%clk 0:01:06]} 38. Ra3 {[%clk 0:00:44]}  b4 {[%clk 0:00:58]} 39. Rxc3 {[%clk 0:00:43]}  Bxc3 {[%clk 0:00:55]} 40. Nxc4 {[%clk 0:00:43]}  b3 {[%clk 0:00:55]} 41. Nfe3 {[%clk 0:00:42]}  b2 {[%clk 0:00:55]} 42. Na3 {[%clk 0:00:42]}  b1=Q {[%clk 0:00:49]} 43. Nxb1 {[%clk 0:00:41]}  Rxb1 {[%clk 0:00:50]} 44. Nd5 {[%clk 0:00:41]}  Bxa5 {[%clk 0:00:50]} 45. h5 {[%clk 0:00:40]}  Kf7 {[%clk 0:00:46]} 46. hxg6+ {[%clk 0:00:40]}  Kxg6 {[%clk 0:00:47]} 47. Kf3 {[%clk 0:00:40]}  Rb3+ {[%clk 0:00:45]} 48. Kg2 {[%clk 0:00:38]}  Be1 {[%clk 0:00:43]} 49. Ne7+ {[%clk 0:00:19]}  Kf6 {[%clk 0:00:41]} 50. Ng8+ {[%clk 0:00:19]}  Ke6 {[%clk 0:00:38]} 51. Nxh6 {[%clk 0:00:18]}  Rxg3+ {[%clk 0:00:38]} 52. Kf1 {[%clk 0:00:19]}  Rg6 {[%clk 0:00:38]} 53. Nxf5 {[%clk 0:00:18]}  Kxf5 {[%clk 0:00:39]} 54. Kxe1 {[%clk 0:00:18]}  Rg2 {[%clk 0:00:39]} 55. Kf1 {[%clk 0:00:18]}  Rb2 {[%clk 0:00:39]} 0-1


[Site "https://www.chess.com"]

[Event "Titled Tuesday Blitz February 28 Late 2023"]
[White "Abdyzhaparov, Aidar"]
[Black "Kim, Yoon-Young"]
[WhiteFideId "13800361"]
[BlackFideId "30908779"]
[WhiteElo "2002"]
[BlackElo "2217"]
[Result "0-1"]
[Round "01"]
[TimeControl "180+2"]
[Date "2023.02.28"]
[WhiteClock "0:00:08"]
[BlackClock "0:00:11"]

1. Nf3 {[%clk 0:02:59]}  d5 {[%clk 0:02:56]} 2. c4 {[%clk 0:02:59]}  c6 {[%clk 0:02:56]} 3. d4 {[%clk 0:03:00]}  Nf6 {[%clk 0:02:57]} 4. e3 {[%clk 0:03:00]}  Bf5 {[%clk 0:02:57]} 5. Nc3 {[%clk 0:03:00]}  e6 {[%clk 0:02:57]} 6. Nh4 {[%clk 0:03:00]}  Be4 {[%clk 0:02:58]} 7. f3 {[%clk 0:02:59]}  Bg6 {[%clk 0:02:58]} 8. Qb3 {[%clk 0:02:57]}  Qc7 {[%clk 0:02:58]} 9. Bd2 {[%clk 0:02:53]}  Be7 {[%clk 0:02:51]} 10. cxd5 {[%clk 0:02:51]}  cxd5 {[%clk 0:02:49]} 11. Rc1 {[%clk 0:02:48]}  Nc6 {[%clk 0:02:49]} 12. Nxg6 {[%clk 0:02:39]}  hxg6 {[%clk 0:02:48]} 13. g3 {[%clk 0:02:40]}  Rc8 {[%clk 0:02:36]} 14. Be2 {[%clk 0:02:34]}  Bd6 {[%clk 0:02:15]} 15. f4 {[%clk 0:02:26]}  a6 {[%clk 0:02:13]} 16. Bf3 {[%clk 0:02:15]}  O-O {[%clk 0:02:06]} 17. Qd1 {[%clk 0:02:08]}  b5 {[%clk 0:01:38]} 18. a3 {[%clk 0:02:00]}  Qb7 {[%clk 0:01:28]} 19. O-O {[%clk 0:01:34]}  Qb6 {[%clk 0:01:19]} 20. Kg2 {[%clk 0:01:33]}  Na5 {[%clk 0:01:18]} 21. Rc2 {[%clk 0:01:30]}  Nc4 {[%clk 0:01:16]} 22. Bc1 {[%clk 0:01:30]}  Rc7 {[%clk 0:00:55]} 23. g4 {[%clk 0:01:29]}  Rfc8 {[%clk 0:00:53]} 24. g5 {[%clk 0:01:29]}  Nd7 {[%clk 0:00:48]} 25. Qe1 {[%clk 0:01:29]}  Qa5 {[%clk 0:00:38]} 26. Rff2 {[%clk 0:01:05]}  b4 {[%clk 0:00:31]} 27. axb4 {[%clk 0:01:04]}  Bxb4 {[%clk 0:00:18]} 28. Be2 {[%clk 0:00:25]}  Nxb2 {[%clk 0:00:17]} 29. Bxb2 {[%clk 0:00:26]}  Bxc3 {[%clk 0:00:18]} 30. Bxc3 {[%clk 0:00:25]}  Rxc3 {[%clk 0:00:19]} 31. Rxc3 {[%clk 0:00:25]}  Qxc3 {[%clk 0:00:20]} 32. Qxc3 {[%clk 0:00:22]}  Rxc3 {[%clk 0:00:20]} 33. Kf3 {[%clk 0:00:13]}  a5 {[%clk 0:00:20]} 34. Rf1 {[%clk 0:00:13]}  Nb6 {[%clk 0:00:12]} 35. Rb1 {[%clk 0:00:12]}  Rc6 {[%clk 0:00:13]} 36. Bb5 {[%clk 0:00:09]}  Rd6 {[%clk 0:00:13]} 37. Ra1 {[%clk 0:00:09]}  a4 {[%clk 0:00:09]} 38. Bxa4 {[%clk 0:00:09]}  Nc4 {[%clk 0:00:09]} 39. Bb3 {[%clk 0:00:08]}  Nd2+ {[%clk 0:00:09]} 40. Ke2 {[%clk 0:00:08]}  Nxb3 {[%clk 0:00:10]} 41. Ra8+ {[%clk 0:00:08]}  Kh7 {[%clk 0:00:11]} 42. Rf8 {[%clk 0:00:09]}  Rd7 {[%clk 0:00:11]} 43. Kf3 {[%clk 0:00:09]}  Na5 {[%clk 0:00:11]} 44. h4 {[%clk 0:00:09]}  Nc4 {[%clk 0:00:11]} 45. h5 {[%clk 0:00:09]}  gxh5 {[%clk 0:00:10]} 46. Kg3 {[%clk 0:00:10]}  Nd6 {[%clk 0:00:11]} 47. Kh4 {[%clk 0:00:11]}  Kg6 {[%clk 0:00:09]} 48. Kg3 {[%clk 0:00:08]}  Nf5+ {[%clk 0:00:10]} 49. Kf3 {[%clk 0:00:08]}  h4 {[%clk 0:00:11]} 50. Rh8 {[%clk 0:00:08]}  Rc7 {[%clk 0:00:11]} 0-1


[Site "https://www.chess.com"]

[Event "Titled Tuesday Blitz February 28 Late 2023"]
[White "Martynov, Pavel"]
[Black "Meftahi, Houssem"]
[WhiteFideId "4101260"]
[BlackFideId "5501660"]
[WhiteElo "2314"]
[BlackElo "2124"]
[Result "1-0"]
[Round "01"]
[TimeControl "180+2"]
[Date "2023.02.28"]
[WhiteClock "0:01:40"]
[BlackClock "0:00:12"]

1. e4 {[%clk 0:02:59]}  c5 {[%clk 0:02:53]} 2. Nf3 {[%clk 0:02:59]}  Nc6 {[%clk 0:02:53]} 3. Bb5 {[%clk 0:02:59]}  e6 {[%clk 0:02:53]} 4. c3 {[%clk 0:02:59]}  Nge7 {[%clk 0:02:52]} 5. O-O {[%clk 0:02:58]}  a6 {[%clk 0:02:52]} 6. Ba4 {[%clk 0:02:59]}  b5 {[%clk 0:02:52]} 7. Bc2 {[%clk 0:02:59]}  d5 {[%clk 0:02:52]} 8. Re1 {[%clk 0:02:59]}  d4 {[%clk 0:02:51]} 9. a4 {[%clk 0:02:53]}  d3 {[%clk 0:02:23]} 10. Bb3 {[%clk 0:02:37]}  c4 {[%clk 0:02:23]} 11. Ba2 {[%clk 0:02:37]}  Ng6 {[%clk 0:02:17]} 12. b3 {[%clk 0:02:37]}  Na5 {[%clk 0:02:15]} 13. Na3 {[%clk 0:02:33]}  Nf4 {[%clk 0:01:57]} 14. b4 {[%clk 0:02:30]}  Nc6 {[%clk 0:01:46]} 15. axb5 {[%clk 0:02:30]}  axb5 {[%clk 0:01:45]} 16. Nxb5 {[%clk 0:02:30]}  g5 {[%clk 0:01:36]} 17. Nbd4 {[%clk 0:02:30]}  Nxd4 {[%clk 0:01:31]} 18. Nxd4 {[%clk 0:02:31]}  Bg7 {[%clk 0:01:24]} 19. Bb2 {[%clk 0:02:30]}  Rxa2 {[%clk 0:00:43]} 20. Rxa2 {[%clk 0:02:30]}  O-O {[%clk 0:00:43]} 21. g3 {[%clk 0:02:15]}  Ng6 {[%clk 0:00:28]} 22. Ra8 {[%clk 0:02:11]}  Qc7 {[%clk 0:00:20]} 23. Qa4 {[%clk 0:02:11]}  Bb7 {[%clk 0:00:18]} 24. Rxf8+ {[%clk 0:02:10]}  Bxf8 {[%clk 0:00:16]} 25. Qa7 {[%clk 0:02:03]}  h5 {[%clk 0:00:15]} 26. b5 {[%clk 0:01:53]}  h4 {[%clk 0:00:14]} 27. b6 {[%clk 0:01:50]}  Qd7 {[%clk 0:00:14]} 28. Ba3 {[%clk 0:01:47]}  e5 {[%clk 0:00:13]} 29. Nf5 {[%clk 0:01:45]}  hxg3 {[%clk 0:00:13]} 30. hxg3 {[%clk 0:01:43]}  Qc6 {[%clk 0:00:11]} 31. Bxf8 {[%clk 0:01:40]}  Nxf8 {[%clk 0:00:12]} 32. Ne7+ {[%clk 0:01:40]} 1-0


[Site "https://www.chess.com"]

[Event "Titled Tuesday Blitz February 28 Late 2023"]
[White "Ansh M Shah"]
[Black "Alex_Sahakyan2006"]
[WhiteFideId "25033379"]
[WhiteElo "2084"]
[BlackElo "2637"]
[Result "1-0"]
[Round "01"]
[TimeControl "180+2"]
[Date "2023.02.28"]
[WhiteClock "0:00:05"]
[BlackClock "0:00:16"]

1. d4 {[%clk 0:02:57]}  Nf6 {[%clk 0:02:59]} 2. c4 {[%clk 0:02:58]}  e6 {[%clk 0:02:59]} 3. g3 {[%clk 0:02:58]}  d5 {[%clk 0:02:58]} 4. Bg2 {[%clk 0:02:58]}  dxc4 {[%clk 0:02:53]} 5. Nf3 {[%clk 0:02:58]}  Nbd7 {[%clk 0:02:51]} 6. O-O {[%clk 0:02:57]}  a6 {[%clk 0:02:48]} 7. a4 {[%clk 0:02:47]}  Rb8 {[%clk 0:02:34]} 8. b3 {[%clk 0:02:25]}  cxb3 {[%clk 0:02:32]} 9. Qxb3 {[%clk 0:02:26]}  b5 {[%clk 0:02:32]} 10. axb5 {[%clk 0:02:24]}  Rxb5 {[%clk 0:02:20]} 11. Qc2 {[%clk 0:02:14]}  Be7 {[%clk 0:02:16]} 12. Rd1 {[%clk 0:02:12]}  O-O {[%clk 0:02:14]} 13. Na3 {[%clk 0:02:09]}  Rh5 {[%clk 0:02:12]} 14. Ne5 {[%clk 0:01:44]}  Nxe5 {[%clk 0:01:59]} 15. dxe5 {[%clk 0:01:44]}  Nd7 {[%clk 0:01:59]} 16. f4 {[%clk 0:01:39]}  c5 {[%clk 0:01:56]} 17. Be3 {[%clk 0:01:37]}  Qc7 {[%clk 0:01:55]} 18. Nc4 {[%clk 0:01:36]}  Bb7 {[%clk 0:01:52]} 19. Bxb7 {[%clk 0:01:32]}  Qxb7 {[%clk 0:01:53]} 20. Qd3 {[%clk 0:00:59]}  Rd8 {[%clk 0:01:46]} 21. Na5 {[%clk 0:00:55]}  Qa8 {[%clk 0:01:37]} 22. Qc2 {[%clk 0:00:44]}  g5 {[%clk 0:01:15]} 23. Rab1 {[%clk 0:00:19]}  gxf4 {[%clk 0:01:13]} 24. Bxf4 {[%clk 0:00:19]}  Nxe5 {[%clk 0:01:11]} 25. Rb7 {[%clk 0:00:14]}  Re8 {[%clk 0:00:59]} 26. Qe4 {[%clk 0:00:11]}  Ng6 {[%clk 0:00:58]} 27. Rdd7 {[%clk 0:00:10]}  Rf5 {[%clk 0:00:47]} 28. Nc6 {[%clk 0:00:09]}  Bf8 {[%clk 0:00:44]} 29. Ne5 {[%clk 0:00:07]}  f6 {[%clk 0:00:18]} 30. Nxg6 {[%clk 0:00:06]}  hxg6 {[%clk 0:00:19]} 31. Qc6 {[%clk 0:00:03]}  g5 {[%clk 0:00:17]} 32. e4 {[%clk 0:00:03]}  gxf4 {[%clk 0:00:16]} 33. exf5 {[%clk 0:00:04]}  Qc8 {[%clk 0:00:15]} 34. Qxc8 {[%clk 0:00:04]}  Rxc8 {[%clk 0:00:16]} 35. fxe6 {[%clk 0:00:04]}  fxg3 {[%clk 0:00:15]} 36. e7 {[%clk 0:00:04]}  gxh2+ {[%clk 0:00:16]} 37. Kxh2 {[%clk 0:00:04]}  Bh6 {[%clk 0:00:16]} 38. Rd8+ {[%clk 0:00:04]}  Kf7 {[%clk 0:00:16]} 39. Rxc8 {[%clk 0:00:04]}  Bf4+ {[%clk 0:00:16]} 40. Kg2 {[%clk 0:00:05]}  Bc7 {[%clk 0:00:16]} 41. e8=Q+ {[%clk 0:00:05]} 1-0


[Site "https://www.chess.com"]

[Event "Titled Tuesday Blitz February 28 Late 2023"]
[White "Goudriaan, Etienne"]
[Black "Liu, Casper"]
[WhiteFideId "1021150"]
[BlackFideId "1454153"]
[WhiteElo "2318"]
[BlackElo "2221"]
[Result "1-0"]
[Round "01"]
[TimeControl "180+2"]
[Date "2023.02.28"]
[WhiteClock "0:01:02"]
[BlackClock "0:00:48"]

1. d4 {[%clk 0:03:00]}  Nf6 {[%clk 0:02:45]} 2. c4 {[%clk 0:03:00]}  e5 {[%clk 0:02:45]} 3. dxe5 {[%clk 0:02:56]}  Ng4 {[%clk 0:02:46]} 4. e4 {[%clk 0:02:55]}  Nxe5 {[%clk 0:02:45]} 5. f4 {[%clk 0:02:55]}  Ng6 {[%clk 0:02:45]} 6. Nf3 {[%clk 0:02:47]}  Bc5 {[%clk 0:02:46]} 7. h4 {[%clk 0:02:38]}  h5 {[%clk 0:02:35]} 8. f5 {[%clk 0:02:37]}  Nf8 {[%clk 0:02:20]} 9. Nc3 {[%clk 0:02:29]}  d6 {[%clk 0:02:20]} 10. Bg5 {[%clk 0:02:26]}  f6 {[%clk 0:02:17]} 11. Bf4 {[%clk 0:02:22]}  a5 {[%clk 0:02:14]} 12. Bd3 {[%clk 0:02:20]}  Nc6 {[%clk 0:02:14]} 13. Qe2 {[%clk 0:02:15]}  Nd7 {[%clk 0:02:14]} 14. O-O-O {[%clk 0:02:14]}  Nde5 {[%clk 0:02:12]} 15. Bc2 {[%clk 0:02:09]}  Qe7 {[%clk 0:02:08]} 16. Nd5 {[%clk 0:02:08]}  Qf7 {[%clk 0:02:08]} 17. Kb1 {[%clk 0:01:51]}  Nb4 {[%clk 0:02:08]} 18. Ba4+ {[%clk 0:01:45]}  c6 {[%clk 0:02:06]} 19. Nc3 {[%clk 0:01:33]}  O-O {[%clk 0:02:06]} 20. Nxe5 {[%clk 0:01:25]}  dxe5 {[%clk 0:02:03]} 21. Be3 {[%clk 0:01:25]}  Bxe3 {[%clk 0:02:01]} 22. Qxe3 {[%clk 0:01:26]}  Kh8 {[%clk 0:01:25]} 23. g4 {[%clk 0:01:25]}  Qxc4 {[%clk 0:01:18]} 24. Bb3 {[%clk 0:01:17]}  Qa6 {[%clk 0:01:16]} 25. g5 {[%clk 0:01:16]}  a4 {[%clk 0:01:12]} 26. Nxa4 {[%clk 0:01:05]}  Nxa2 {[%clk 0:01:11]} 27. gxf6 {[%clk 0:01:04]}  b5 {[%clk 0:00:47]} 28. fxg7+ {[%clk 0:01:03]}  Kxg7 {[%clk 0:00:47]} 29. Qg5+ {[%clk 0:01:03]}  Kh7 {[%clk 0:00:48]} 30. Qg6+ {[%clk 0:01:01]}  Kh8 {[%clk 0:00:48]} 31. Qh6# {[%clk 0:01:02]} 1-0


[Site "https://www.chess.com"]

[Event "Titled Tuesday Blitz February 28 Late 2023"]
[White "Haydon, David L"]
[Black "Itkis, Boris"]
[WhiteFideId "415405"]
[BlackFideId "1209167"]
[WhiteElo "2326"]
[BlackElo "2216"]
[Result "1-0"]
[Round "01"]
[TimeControl "180+2"]
[Date "2023.02.28"]
[WhiteClock "0:01:12"]
[BlackClock "0:00:21"]

1. e4 {[%clk 0:02:59]}  e5 {[%clk 0:02:59]} 2. Nf3 {[%clk 0:02:56]}  Nc6 {[%clk 0:02:59]} 3. Bb5 {[%clk 0:02:56]}  a6 {[%clk 0:02:59]} 4. Ba4 {[%clk 0:02:55]}  d6 {[%clk 0:02:59]} 5. O-O {[%clk 0:02:52]}  Bd7 {[%clk 0:02:58]} 6. d3 {[%clk 0:02:52]}  Nge7 {[%clk 0:02:58]} 7. Re1 {[%clk 0:02:51]}  Ng6 {[%clk 0:02:58]} 8. h3 {[%clk 0:02:51]}  Be7 {[%clk 0:02:58]} 9. Nc3 {[%clk 0:02:51]}  O-O {[%clk 0:02:58]} 10. Nd5 {[%clk 0:02:50]}  f5 {[%clk 0:02:55]} 11. Bb3 {[%clk 0:02:49]}  Kh8 {[%clk 0:02:54]} 12. Nxe7 {[%clk 0:02:47]}  Qxe7 {[%clk 0:02:54]} 13. Bg5 {[%clk 0:02:47]}  Qe8 {[%clk 0:02:52]} 14. exf5 {[%clk 0:02:46]}  Bxf5 {[%clk 0:02:50]} 15. d4 {[%clk 0:02:41]}  h6 {[%clk 0:02:30]} 16. Bd2 {[%clk 0:02:29]}  Qd7 {[%clk 0:01:48]} 17. dxe5 {[%clk 0:02:28]}  Ngxe5 {[%clk 0:01:44]} 18. Nxe5 {[%clk 0:02:27]}  Nxe5 {[%clk 0:01:44]} 19. Bc3 {[%clk 0:02:26]}  Nc6 {[%clk 0:01:41]} 20. Qd2 {[%clk 0:02:24]}  Kh7 {[%clk 0:01:37]} 21. Re3 {[%clk 0:02:16]}  Bg6 {[%clk 0:01:37]} 22. Be6 {[%clk 0:02:05]}  Qd8 {[%clk 0:01:30]} 23. Rg3 {[%clk 0:02:05]}  Ne7 {[%clk 0:01:08]} 24. Re1 {[%clk 0:01:55]}  d5 {[%clk 0:00:51]} 25. h4 {[%clk 0:01:52]}  h5 {[%clk 0:00:44]} 26. Qd4 {[%clk 0:01:37]}  Rf6 {[%clk 0:00:37]} 27. Qd2 {[%clk 0:01:25]}  Rf8 {[%clk 0:00:36]} 28. Re5 {[%clk 0:01:16]}  c6 {[%clk 0:00:21]} 29. Rxh5+ {[%clk 0:01:12]} 1-0


[Site "https://www.chess.com"]

[Event "Titled Tuesday Blitz February 28 Late 2023"]
[White "Todev, Simeon"]
[Black "Kvaloy, Aksel Bu"]
[WhiteFideId "2925133"]
[BlackFideId "1528815"]
[WhiteElo "1938"]
[BlackElo "2208"]
[Result "0-1"]
[Round "01"]
[TimeControl "180+2"]
[Date "2023.02.28"]
[WhiteClock "0:00:03"]
[BlackClock "0:00:49"]

1. e4 {[%clk 0:02:50]}  e5 {[%clk 0:03:00]} 2. Nf3 {[%clk 0:02:48]}  Nf6 {[%clk 0:03:00]} 3. d4 {[%clk 0:02:43]}  Nxe4 {[%clk 0:02:58]} 4. Nxe5 {[%clk 0:02:38]}  d6 {[%clk 0:02:51]} 5. Nf3 {[%clk 0:02:37]}  d5 {[%clk 0:02:51]} 6. c4 {[%clk 0:02:36]}  c6 {[%clk 0:02:48]} 7. Nc3 {[%clk 0:02:31]}  Be7 {[%clk 0:02:47]} 8. Bd3 {[%clk 0:02:30]}  Bf5 {[%clk 0:02:46]} 9. cxd5 {[%clk 0:02:29]}  cxd5 {[%clk 0:02:45]} 10. Qb3 {[%clk 0:02:28]}  Nc5 {[%clk 0:01:41]} 11. Bb5+ {[%clk 0:02:25]}  Ncd7 {[%clk 0:01:39]} 12. Qxd5 {[%clk 0:02:15]}  Bg4 {[%clk 0:01:16]} 13. Ne5 {[%clk 0:01:54]}  Be6 {[%clk 0:01:15]} 14. Qxb7 {[%clk 0:01:54]}  a6 {[%clk 0:01:16]} 15. Qxa8 {[%clk 0:01:44]}  axb5 {[%clk 0:01:15]} 16. Nxd7 {[%clk 0:01:42]}  Bxd7 {[%clk 0:01:15]} 17. O-O {[%clk 0:01:41]}  b4 {[%clk 0:01:06]} 18. Na4 {[%clk 0:01:13]}  Bc6 {[%clk 0:01:04]} 19. Qa7 {[%clk 0:01:08]}  O-O {[%clk 0:01:03]} 20. Bf4 {[%clk 0:01:05]}  Qd5 {[%clk 0:01:01]} 21. f3 {[%clk 0:00:57]}  Nd7 {[%clk 0:00:58]} 22. b3 {[%clk 0:00:17]}  Bf6 {[%clk 0:00:54]} 23. Rfd1 {[%clk 0:00:11]}  Ra8 {[%clk 0:00:49]} 24. Qc7 {[%clk 0:00:10]}  Bxd4+ {[%clk 0:00:48]} 25. Kh1 {[%clk 0:00:09]}  Qxf3 {[%clk 0:00:49]} 26. Rd3 {[%clk 0:00:03]} 0-1


[Site "https://www.chess.com"]

[Event "Titled Tuesday Blitz February 28 Late 2023"]
[White "Gunduz, Umut Erdem"]
[Black "Prieto Aranguren, Alain"]
[WhiteFideId "6381383"]
[BlackFideId "2268906"]
[WhiteElo "2182"]
[BlackElo "2209"]
[Result "1-0"]
[Round "01"]
[TimeControl "180+2"]
[Date "2023.02.28"]
[WhiteClock "0:01:42"]
[BlackClock "0:00:29"]

1. e4 {[%clk 0:02:58]}  c6 {[%clk 0:02:58]} 2. d4 {[%clk 0:02:58]}  d5 {[%clk 0:02:57]} 3. Nd2 {[%clk 0:02:58]}  a6 {[%clk 0:02:56]} 4. Ngf3 {[%clk 0:02:57]}  Bg4 {[%clk 0:02:55]} 5. c3 {[%clk 0:02:56]}  e6 {[%clk 0:02:54]} 6. h3 {[%clk 0:02:55]}  Bh5 {[%clk 0:02:54]} 7. Bd3 {[%clk 0:02:54]}  Nf6 {[%clk 0:02:53]} 8. O-O {[%clk 0:02:53]}  Be7 {[%clk 0:02:52]} 9. Re1 {[%clk 0:02:53]}  O-O {[%clk 0:02:52]} 10. a4 {[%clk 0:02:53]}  Ra7 {[%clk 0:02:43]} 11. Qb3 {[%clk 0:02:48]}  dxe4 {[%clk 0:02:39]} 12. Nxe4 {[%clk 0:02:33]}  Bxf3 {[%clk 0:02:37]} 13. gxf3 {[%clk 0:02:34]}  c5 {[%clk 0:02:30]} 14. Nxf6+ {[%clk 0:02:30]}  Bxf6 {[%clk 0:02:29]} 15. Qc2 {[%clk 0:02:30]}  g6 {[%clk 0:02:26]} 16. dxc5 {[%clk 0:02:28]}  Nc6 {[%clk 0:02:17]} 17. Be3 {[%clk 0:02:22]}  Qd5 {[%clk 0:02:06]} 18. Be4 {[%clk 0:02:12]}  Qh5 {[%clk 0:02:05]} 19. Kg2 {[%clk 0:02:11]}  Raa8 {[%clk 0:01:44]} 20. f4 {[%clk 0:02:10]}  Qh4 {[%clk 0:01:40]} 21. b4 {[%clk 0:02:07]}  Rad8 {[%clk 0:01:34]} 22. Rad1 {[%clk 0:02:06]}  Ne7 {[%clk 0:01:33]} 23. Bxb7 {[%clk 0:02:02]}  Nd5 {[%clk 0:01:28]} 24. Bxd5 {[%clk 0:02:00]}  exd5 {[%clk 0:01:28]} 25. c6 {[%clk 0:01:58]}  Rfe8 {[%clk 0:01:21]} 26. b5 {[%clk 0:01:56]}  axb5 {[%clk 0:01:09]} 27. axb5 {[%clk 0:01:57]}  Rc8 {[%clk 0:01:03]} 28. Rxd5 {[%clk 0:01:52]}  h6 {[%clk 0:00:57]} 29. c4 {[%clk 0:01:50]}  Kh7 {[%clk 0:00:53]} 30. Rd7 {[%clk 0:01:50]}  Kg7 {[%clk 0:00:52]} 31. Red1 {[%clk 0:01:46]}  g5 {[%clk 0:00:49]} 32. Qf5 {[%clk 0:01:44]}  gxf4 {[%clk 0:00:35]} 33. Qxf4 {[%clk 0:01:43]}  Qh5 {[%clk 0:00:30]} 34. Qg4+ {[%clk 0:01:43]}  Qxg4+ {[%clk 0:00:29]} 35. hxg4 {[%clk 0:01:44]}  Kg6 {[%clk 0:00:29]} 36. Kf3 {[%clk 0:01:42]} 1-0


[Site "https://www.chess.com"]